[Event "HUN-ch Preliminary 2019"]
[Site "Budapest"]
[Date "2019.12.04"]
[Round "1.7"]
[White "Horvath, Csaba"]
[Black "Videki, Sandor"]
[Result "0-1"]
[ECO "A40"]
[WhiteElo "2513"]
[BlackElo "2397"]
[Annotator "ChessBase"]
[PlyCount "168"]
[EventDate "2019.12.04"]
[EventType "k.o."]
[EventCountry "HUN"]
[SourceTitle "playchess.com"]
[Source "ChessBase"]
[SourceQuality "1"]
[TimeControl "40/5400+30:1800+30"]

1. d4 {[%emt 0:00:04]} e6 {[%emt 0:00:09]} 2. g3 {[%emt 0:02:58]} c5 {[%emt 0:00:59]} 3. Nf3 {[%emt 0:00:06]} Nf6 {[%emt 0:00:08]} 4. Bg2 {[%emt 0:00:19]} cxd4 {[%emt 0:00:08]} 5. O-O {[%emt 0:02:17]} d5 {[%emt 0:00:06]} 6. b3 {[%emt 0:04:07]} Nc6 {[%emt 0:11:57]} 7. Nxd4 {[%emt 0:00:09]} Qb6 {[%emt 0:02:47]} 8. Nxc6 {[%emt 0:10:31]} bxc6 {[%emt 0:00:17]} 9. c4 {[%emt 0:00:10]} Be7 {[%emt 0:04:55]} 10. Nc3 {[%emt 0:02:40]} O-O {[%emt 0:00:35]} 11. Na4 {[%emt 0:07:08]} Qa6 {[%emt 0:09:07]} 12. Qc2 {[%emt 0:01:07]} Bb7 {[%emt 0:10:30]} 13. Bb2 {[%emt 0:05:43]} Rac8 {[%emt 0:01:57]} 14. Rac1 {[%emt 0:02:57]} Nd7 {[%emt 0:04:12]} 15. c5 {[%emt 0:16:45]} Rfd8 {[%emt 0:11:28]} 16. Rfd1 {[%emt 0:05:47]} Nf6 {[%emt 0:04:56]} 17. b4 {[%emt 0:03:21]} Qb5 {[%emt 0:04:24]} 18. a3 {[%emt 0:01:13]} Ba6 {[%emt 0:00:22]} 19. e4 {[%emt 0:13:44]} Qb8 {[%emt 0:00:43]} 20. exd5 {[%emt 0:01:01]} cxd5 {[%emt 0:06:03]} 21. Re1 {[%emt 0:04:22]} Qb7 {[%emt 0:00:34]} 22. Be5 {[%emt 0:07:53]} Bb5 {[%emt 0:05:00]} 23. Nc3 {[%emt 0:00:02]} Bc4 {[%emt 0:01:14]} 24. Ne4 {[%emt 0:00:56]} Qa6 {[%emt 0:02:26]} 25. Bxf6 {[%emt 0:04:09]} gxf6 {[%emt 0:00:53]} 26. Nd2 {[%emt 0:00:07]} Qxa3 {[%emt 0:05:26]} 27. Nxc4 {[%emt 0:00:03]} dxc4 {[%emt 0:01:17]} 28. Qxc4 {[%emt 0:00:09]} a5 {[%emt 0:00:08]} 29. Qg4+ {[%emt 0:02:10]} Kf8 {[%emt 0:02:58]} 30. Qh5 {[%emt 0:01:17]} axb4 {[%emt 0:01:17]} 31. c6 {[%emt 0:00:37]} Kg7 {[%emt 0:02:18]} 32. Qg4+ {[%emt 0:00:21]} Kh8 {[%emt 0:00:14]} 33. Qh5 {[%emt 0:00:50]} Kg7 {[%emt 0:01:40]} 34. Qg4+ {[%emt 0:00:51]} Kh8 {[%emt 0:00:04]} 35. Ra1 {[%emt 0:00:11]} Qc3 {[%emt 0:01:09]} 36. Qh5 {[%emt 0:00:15]} Rf8 {[%emt 0:01:05]} 37. Rac1 {[%emt 0:00:45]} Qb2 {[%emt 0:00:34]} 38. Rc4 {[%emt 0:01:07]} f5 {[%emt 0:00:16]} 39. c7 {[%emt 0:00:07]} Qa2 {[%emt 0:01:28]} 40. Qe2 {[%emt 0:00:00]} Qxe2 {[%emt 0:00:00]} 41. Rxe2 {[%emt 0:00:54]} Bd6 {[%emt 0:04:02]} 42. Rec2 {[%emt 0:07:31]} b3 {[%emt 0:08:02]} 43. Rb2 {[%emt 0:00:18]} Rxc7 {[%emt 0:06:08]} 44. Rxc7 {[%emt 0:00:08]} Bxc7 {[%emt 0:00:03]} 45. Rxb3 {[%emt 0:00:06]} Rd8 {[%emt 0:00:29]} 46. Rb7 {[%emt 0:04:19]} Rd1+ {[%emt 0:00:23]} 47. Bf1 {[%emt 0:00:03]} Rc1 {[%emt 0:00:12]} 48. Kg2 {[%emt 0:00:25]} Kg7 {[%emt 0:00:12]} 49. Be2 {[%emt 0:01:48]} Kg6 {[%emt 0:02:06]} 50. Rb4 {[%emt 0:01:33]} Bd6 {[%emt 0:00:54]} 51. Rc4 {[%emt 0:01:07]} Re1 {[%emt 0:00:40]} 52. Bf3 {[%emt 0:03:45]} Ra1 {[%emt 0:00:20]} 53. Rc2 {[%emt 0:01:14]} Be5 {[%emt 0:00:55]} 54. Be2 {[%emt 0:02:15]} Bd4 {[%emt 0:00:36]} 55. Rc4 {[%emt 0:01:26]} Ra2 {[%emt 0:05:46]} 56. Rxd4 {[%emt 0:01:14]} Rxe2 {[%emt 0:00:04]} 57. Rd8 {[%emt 0:01:12]} e5 {[%emt 0:03:46]} 58. Rd6+ {[%emt 0:01:01]} f6 {[%emt 0:00:24]} 59. Rd8 {[%emt 0:00:20]} Ra2 {[%emt 0:01:47]} 60. Rg8+ {[%emt 0:02:18]} Kf7 {[%emt 0:00:06]} 61. Rh8 {[%emt 0:00:11]} Kg7 {[%emt 0:00:27]} 62. Rb8 {[%emt 0:00:13]} Ra4 {[%emt 0:00:07]} 63. Kf3 {[%emt 0:01:57]} Ra3+ {[%emt 0:00:10]} 64. Kg2 {[%emt 0:00:28]} Ra4 {[%emt 0:00:11]} 65. Kf3 {[%emt 0:00:06]} Rc4 {[%emt 0:00:16]} 66. Ra8 {[%emt 0:00:20]} Rb4 {[%emt 0:00:23]} 67. Rc8 {[%emt 0:00:27]} h6 {[%emt 0:01:50]} 68. Ra8 {[%emt 0:00:23]} h5 {[%emt 0:01:01]} 69. Kg2 {[%emt 0:00:49]} f4 {[%emt 0:01:12]} 70. Kf3 {[%emt 0:02:44]} Kg6 {[%emt 0:01:08]} 71. Rh8 {[%emt 0:01:03]} Rb3+ {[%emt 0:00:23]} 72. Ke4 {[%emt 0:00:09]} Rb4+ {[%emt 0:01:44]} 73. Kf3 {[%emt 0:00:01]} Kg5 {[%emt 0:00:36]} 74. Kg2 {[%emt 0:00:29]} Rb3 {[%emt 0:00:33]} 75. gxf4+ {[%emt 0:00:36]} exf4 {[%emt 0:00:17]} 76. h3 {[%emt 0:03:33]} Kh4 {[%emt 0:00:22]} 77. Rh6 {[%emt 0:01:09]} f3+ {[%emt 0:00:44]} 78. Kh2 {[%emt 0:00:15]} Rb2 {[%emt 0:00:13]} 79. Kg1 {[%emt 0:00:47]} f5 {[%emt 0:01:31]} 80. Rh8 {[%emt 0:01:27]} Rb1+ {[%emt 0:00:33]} 81. Kh2 {[%emt 0:00:01]} Rf1 {[%emt 0:00:14]} 82. Rf8 {[%emt 0:00:11]} Rxf2+ {[%emt 0:00:19]} 83. Kg1 {[%emt 0:00:19]} Rg2+ {[%emt 0:00:24]} 84. Kh1 {[%emt 0:01:08]} Rg5 {[%emt 0:00:30]} 0-1